[Event "1st Festival ChessInLyon-GM 2024"]
[Site "Lyon"]
[Date "2024.04.28"]
[Round "9.3"]
[White "Shyaamnikhil P"]
[Black "Droin, Augustin"]
[Result "1/2-1/2"]
[ECO "C67"]
[WhiteElo "2390"]
[BlackElo "2478"]
[Annotator "TA"]
[PlyCount "138"]
[EventDate "2024.04.23"]
[EventType "tourn"]
[EventCountry "FRA"]
[SourceTitle "playchess.com"]
[Source "ChessBase"]
[SourceQuality "1"]
[TimeControl "40/5400+30:1800+30"]

{[%evp 9,138,30,46,68,70,68,64,60,65,66,25,35,40,40,37,44,29,35,32,32,27,25,40,40,75,73,70,68,105,62,49,57,57,39,62,52,44,27,64,78,61,13,29,12,28,33,33,34,32,33,29,30,25,19,33,21,32,25,35,39,39,32,31,25,15,15,22,30,33,25,28,0,0,0,22,18,25,24,50,41,67,20,30,20,24,25,18,23,22,19,33,22,27,27,32,20,21,20,21,21,15,12,12,12,12,13,13,13,13,13,13,8,8,8,8,8,8,8,5,6,4,0,8,8,8,8,8,8,8,0,0]} 1. e4 {[%emt 0:00:09]} e5 {[%emt 0:02:21]} 2. Nf3 {[%emt 0:00:31]} Nc6 {[%emt 0:00:04]} 3. Bb5 {[%emt 0:06:49]} Nf6 {[%emt 0:00:06]} 4. O-O {[%emt 0:05:41]} Nxe4 {[%emt 0:00:06]} 5. d4 {[%emt 0:01:06]} exd4 {[%emt 0:00:05]} 6. Re1 $1 {[%emt 0:07:55]} f5 {[%emt 0:00:06]} 7. Nxd4 {[%emt 0:05:40]} Nxd4 {[%emt 0:00:05]} 8. Qxd4 {[%emt 0:00:07] White is slightly better.} c6 $1 {[%emt 0:00:05][%cal Bc7c6,Bc6b5,Bb5b4][%mdl 32]} 9. f3 {[%emt 0:05:20][%cal Bf2f3,Bf3e4,Be4f5][%mdl 32] Prevents d5} cxb5 {[%emt 0:00:04]} 10. fxe4 {[%emt 0:00:07]} Qb6 $1 {[%emt 0:00:03]} 11. exf5+ {[%emt 0:01:41]} (11. Qxb6 {simplifies} axb6 12. exf5+ Kf7 13. Nc3) 11... Kf7 {[%emt 0:00:03]} 12. Be3 {[%emt 0:01:23]} Qxd4 {[%emt 0:00:04]} 13. Bxd4 {[%emt 0:00:06]} b6 {[%emt 0:00:03]} 14. Nc3 {[%emt 0:03:15][%cal Bb1c3,Bc3e4,Be4f2,Bf2d3][%mdl 32]} b4 $1 {[%emt 0:00:03]} 15. Ne4 {[%emt 0:00:33]} h6 {[%emt 0:00:05] Prevents Ng5+.} 16. Nf2 {[%emt 0:11:10]} d6 {[%emt 0:10:15]} 17. Nd3 {[%emt 0:07:17] White has more active pieces. The black rooks are passive.} Bxf5 {[%emt 0:13:13]} 18. Nxb4 {[%emt 0:01:55]} (18. Rf1 $5 Kg6 $8 19. Nxb4 $14) 18... Re8 {[%emt 0:18:21]} 19. Rf1 {[%emt 0:12:23]} Kg6 {[%emt 0:00:20]} 20. c3 {[%emt 0:00:42]} Bd7 {[%emt 0:13:38]} 21. a4 {[%emt 0:06:24]} Be7 {[%emt 0:00:03]} 22. a5 {[%emt 0:00:13]} Bb5 {[%emt 0:01:00]} 23. Rf3 {[%emt 0:02:25]} Bh4 {[%emt 0:02:38] Wards off Rg3+} 24. axb6 {[%emt 0:00:34]} axb6 {[%emt 0:00:03]} 25. Bxb6 {[%emt 0:02:24]} (25. g3 $14 {was preferrable.} Bd8 26. Nd5) 25... Re2 $11 {[%emt 0:08:29]} 26. Bf2 {[%emt 0:04:31]} Bxf2+ {[%emt 0:00:08]} (26... Ra8 $5 27. Rc1 (27. Rxa8 Bxf2+ 28. Kf1 Rd2+ $11) 27... Bg5 $11) 27. Rxf2 {[%emt 0:00:05]} Rhe8 {[%emt 0:00:02]} 28. Rxe2 {[%emt 0:02:31]} Rxe2 $14 {[%emt 0:00:03][%mdl 4096] Endgame. KRB-KRN} 29. Rd1 {[%emt 0:01:48]} Rxb2 {[%emt 0:00:43]} 30. Rxd6+ {[%emt 0:00:06]} Kh7 {[%emt 0:00:05]} 31. Rd1 {[%emt 0:02:34]} Be8 {[%emt 0:01:12]} 32. Nd3 {[%emt 0:01:51]} Ra2 {[%emt 0:00:52]} 33. Ne5 {[%emt 0:03:02]} Re2 {[%emt 0:03:42]} 34. Rd5 {[%emt 0:02:01]} g5 {[%emt 0:00:57]} 35. Kf1 {[%emt 0:00:50]} Rc2 {[%emt 0:00:09]} 36. c4 {[%emt 0:00:10]} Kg7 {[%emt 0:01:34]} 37. Rd6 {[%emt 0:01:01]} h5 {[%emt 0:02:41]} 38. Re6 {[%emt 0:01:12]} Bf7 {[%emt 0:01:41]} 39. Rc6 {[%emt 0:00:24] [#] And now Rc7 would win.} Be8 {[%emt 0:00:03]} 40. Re6 {[%emt 0:01:13]} Bf7 {[%emt 0:00:05]} 41. Rc6 {[%emt 0:30:39] Hoping for Rc7.} Be8 {[%emt 0:31:10]} 42. Rc8 {[%emt 0:00:00]} Ba4 {[%emt 0:00:00]} 43. Nf3 {[%emt 0:00:00]} g4 {[%emt 0:00:00]} 44. Nd4 {[%emt 0:00:00]} Rd2 {[%emt 0:00:00]} 45. Nf5+ {[%emt 0:00:00]} (45. Rd8 $14 Ra2 46. Rd5) 45... Kg6 $11 {[%emt 0:00:00]} 46. Ne3 {[%emt 0:00:00]} Rb2 {[%emt 0:00:00]} 47. Rc5 {[%emt 0:00:00]} Bd7 {[%emt 0:00:00]} 48. Rd5 {[%emt 0:00:00]} Be6 {[%emt 0:00:00]} 49. Re5 {[%emt 0:00:00]} Bc8 {[%emt 0:00:00]} 50. Rb5 {[%emt 0:00:00]} Ra2 {[%emt 0:00:00]} 51. Nd5 {[%emt 0:00:00] [#] aiming for Ne7+.} Ba6 {[%emt 0:00:00]} 52. Nf4+ {[%emt 0:00:00]} Kf7 {[%emt 0:00:00] The position is equal.} 53. Rf5+ {[%emt 0:00:00]} Ke7 {[%emt 0:00:00]} 54. Rxh5 {[%emt 0:00:00] Nd5+ would now be deadly.} Bxc4+ {[%emt 0:00:00]} 55. Kg1 {[%emt 0:00:00]} Kf6 {[%emt 0:00:00] Wards off Rg5} 56. Rc5 {[%emt 0:00:00]} Bf7 {[%emt 0:00:00]} 57. Kf1 {[%emt 0:00:00]} Ra4 {[%emt 0:00:00]} 58. g3 {[%emt 0:00:00]} Ra2 {[%emt 0:00:00]} 59. Kg1 {[%emt 0:00:00]} Rd2 {[%emt 0:00:00]} 60. Ra5 {[%emt 0:00:32]} Rd1+ {[%emt 0:00:00]} 61. Kf2 {[%emt 0:00:10]} Rd2+ {[%emt 0:00:00]} 62. Ke3 {[%emt 0:00:06]} Rxh2 {[%emt 0:00:00]} 63. Ra6+ {[%emt 0:00:19]} Kf5 {[%emt 0:00:00]} 64. Ra7 {[%emt 0:00:31]} Kf6 {[%emt 0:00:06]} 65. Nd3 {[%emt 0:00:17]} Bc4 {[%emt 0:00:39]} 66. Nc5 {[%emt 0:00:15]} Kf5 {[%emt 0:01:07]} 67. Ra5 {[%emt 0:00:30]} Ra2 {[%emt 0:00:24]} 68. Rxa2 {[%emt 0:01:16]} Bxa2 {[%emt 0:00:04]} 69. Ne4 {[%emt 0:00:04]} Ke5 {[%emt 0:00:11] Weighted Error Value: White=0.05 (flawless) /Black=0.05 (flawless) .  Mistake:       	White=2     	---        Inaccurate:     	White=2     	Black=5      OK:         	White=37    	Black=39     Best:        	White=2     	Black=1      Strong:       	---       	Black=3} 1/2-1/2

[Event "1st Festival ChessInLyon-GM 2024"]
[Site "Lyon"]
[Date "2024.04.28"]
[Round "9.4"]
[White "Fedorchuk, Sergey A."]
[Black "Tahay, Alexis"]
[Result "1/2-1/2"]
[ECO "B95"]
[WhiteElo "2557"]
[BlackElo "2382"]
[Annotator "ChessBase"]
[PlyCount "96"]
[EventDate "2024.04.23"]
[EventType "tourn"]
[EventCountry "FRA"]
[SourceTitle "playchess.com"]
[Source "ChessBase"]
[SourceQuality "1"]
[TimeControl "40/5400+30:1800+30"]

1. e4 {[%emt 0:00:10]} c5 {[%emt 0:00:06]} 2. Nf3 {[%emt 0:01:25]} d6 {[%emt 0:00:07]} 3. d4 {[%emt 0:01:29]} cxd4 {[%emt 0:00:06]} 4. Nxd4 {[%emt 0:00:25]} Nf6 {[%emt 0:00:08]} 5. Nc3 {[%emt 0:01:38]} a6 {[%emt 0:00:13]} 6. Bg5 {[%emt 0:03:37]} e6 {[%emt 0:00:29]} 7. Qf3 {[%emt 0:00:22]} h6 {[%emt 0:00:22]} 8. Bd2 {[%emt 0:05:19]} Qc7 {[%emt 0:02:06]} 9. Bd3 {[%emt 0:06:56]} Bd7 {[%emt 0:11:36]} 10. O-O {[%emt 0:20:01]} Nc6 {[%emt 0:00:26]} 11. Nxc6 {[%emt 0:06:02]} Bxc6 {[%emt 0:00:14]} 12. Rfe1 {[%emt 0:00:04]} Be7 {[%emt 0:09:28]} 13. Qg3 {[%emt 0:02:37]} g6 {[%emt 0:01:52]} 14. a4 {[%emt 0:03:51]} Rc8 {[%emt 0:03:23]} 15. b4 {[%emt 0:11:58]} d5 {[%emt 0:03:44]} 16. Bf4 {[%emt 0:18:35]} Qd8 {[%emt 0:03:54]} 17. Be5 {[%emt 0:12:06]} dxe4 {[%emt 0:05:50]} 18. Bxe4 {[%emt 0:00:08]} Bxe4 {[%emt 0:03:10]} 19. Rad1 {[%emt 0:00:45]} Qb6 {[%emt 0:03:26]} 20. Nxe4 {[%emt 0:00:25]} Nxe4 {[%emt 0:00:06]} 21. Rxe4 {[%emt 0:00:02]} O-O {[%emt 0:00:32]} 22. h4 {[%emt 0:02:06]} Rfd8 {[%emt 0:02:24]} 23. Bd4 {[%emt 0:01:17]} Qc7 {[%emt 0:01:59]} 24. Qe3 {[%emt 0:00:37]} Bf6 {[%emt 0:00:28]} 25. Qxh6 {[%emt 0:00:32]} e5 {[%emt 0:01:05]} 26. h5 {[%emt 0:00:12]} Bg7 {[%emt 0:00:28]} 27. Qg5 {[%emt 0:00:00]} Rxd4 {[%emt 0:02:15]} 28. Rdxd4 {[%emt 0:00:07]} exd4 {[%emt 0:00:01]} 29. hxg6 {[%emt 0:00:01]} fxg6 {[%emt 0:02:15]} 30. Qxg6 {[%emt 0:00:25]} Qf7 {[%emt 0:01:24]} 31. Qg5 {[%emt 0:00:21]} Rf8 {[%emt 0:02:31]} 32. f3 {[%emt 0:00:05]} Re8 {[%emt 0:02:20]} 33. Rxd4 {[%emt 0:01:04]} Qf6 {[%emt 0:02:18]} 34. Qd5+ {[%emt 0:02:00]} Qe6 {[%emt 0:00:44]} 35. Qxe6+ {[%emt 0:00:16]} Rxe6 {[%emt 0:00:01]} 36. Rc4 {[%emt 0:00:04]} Bf8 {[%emt 0:03:31]} 37. Kf2 {[%emt 0:00:36]} Kf7 {[%emt 0:01:01]} 38. c3 {[%emt 0:00:49]} Bd6 {[%emt 0:02:28]} 39. f4 {[%emt 0:00:26]} Kf6 {[%emt 0:04:45]} 40. g4 {[%emt 0:00:42]} b5 {[%emt 0:00:17]} 41. axb5 {[%emt 0:30:25]} axb5 {[%emt 0:30:01]} 42. Rd4 {[%emt 0:00:15]} Bc7 {[%emt 0:00:09]} 43. Rd5 {[%emt 0:00:49]} Re4 {[%emt 0:01:03]} 44. Rf5+ {[%emt 0:00:47]} Ke6 {[%emt 0:00:15]} 45. Rxb5 {[%emt 0:00:35]} Rxf4+ {[%emt 0:00:08]} 46. Ke3 {[%emt 0:00:09]} Rxg4 {[%emt 0:00:06]} 47. Kd3 {[%emt 0:00:08]} Be5 {[%emt 0:00:03]} 48. Rc5 {[%emt 0:00:07]} Kd6 {[%emt 0:03:18]} 1/2-1/2